Cogmind - Beta 11.1 @@@ ROGUE MODE // 2022.06.02 @ 05:52:35 Player: woegarden Result: Destroyed by Y-54 Guardian with Gatling Laser Performance ------------- Evolutions (3) 1500 Regions Visited (4) 800 Robots Destroyed (39) 195 Value Destroyed (936) 936 Prototype IDs (7) 140 Alien Tech Used (0) 0 Bonus (0) 0 TOTAL SCORE: 3571 Bonus ------- None Cogmind --------- Core Integrity 0/700 Matter 23/300 Energy 12/100 System Corruption 0% Temperature Cool (12) Movement Hovering (60) Location -7/Factory Parts ------- > --- POWER (2) -------- (None) > --- PROPULSION (3) --- Airjet > --- UTILITY (5) ------ (None) > --- WEAPON (3) ------- (None) > --- INVENTORY (5) ---- Advanced ECM Suite System Restoration Module Recalibrator Gauss Rifle Peak State ------------ > --- POWER ------------ Light Ion Engine Light Nuclear Core > --- PROPULSION ------- Armored Treads Advanced Treads Compact Wheel > --- UTILITY ---------- Improved Heat Sink High-capacity Storage Unit Weight Redist. System Matter Filter Hardened Medium Armor Plating > --- WEAPON ----------- Heavy Particle Gun Beam Cannon Gauss Rifle > --- INVENTORY -------- Light Treads Advanced Treads Improved Aluminum Leg Improved Aluminum Leg Cooled Airjet Cooled Airjet Huge Storage Unit Compact Matter Pod Structural Scanner Improved Terrain Scanner Matter Filter Advanced ECM Suite System Restoration Module High-powered Tractor Beam Recalibrator Heavy Particle Gun High-powered Shotgun Gauss Rifle Gauss Rifle Mini Grenade Launcher [Rating: 39] Favorites ----------- Power Light Ion Engine Engine Light Ion Engine Power Core Light Nuclear Core Propulsion Compact Wheel Treads Advanced Treads Leg Aluminum Leg Wheel Compact Wheel Hover Unit Cooled Airjet Utility High-capacity Storage Unit Device Improved Heat Sink Storage High-capacity Storage Unit Protection Improved Light Armor Plating Weapon Gauss Rifle Energy Gun Particle Gun Energy Cannon Beam Cannon Ballistic Gun Gauss Rifle Slashing Weapon Mining Claw Build | -11 -10 -9 -8 -7 ------- Run | Scr Mat Mat Mat Fac Slots Evolved 6 | . . 2 2 2 Power 1 | . . . 1 . Propulsion 1 | . . 1 . . Utility 3 | . . . 1 2 Weapon 1 | . . 1 . . Parts Attached 66 | . 8 13 24 21 Power 6 | . . 1 3 2 Engine 4 | . . 1 3 . Core 2 | . . . . 2 Reactor . | . . . . . Propulsion 25 | . 4 3 4 14 Treads 4 | . . . 2 2 Leg 4 | . 2 . 2 . Wheel 5 | . 2 3 . . Hover 12 | . . . . 12 Flight . | . . . . . Utility 13 | . 2 2 6 3 Device 5 | . 1 . 2 2 Storage 4 | . 1 1 2 . Processor . | . . . . . Hackware . | . . . . . Protection 4 | . . 1 2 1 Artifact . | . . . . . Weapon 22 | . 2 7 11 2 Energy Gun 10 | . 1 4 5 . Energy Cannon 1 | . . . 1 . Ballistic Gun 10 | . 1 2 5 2 Ballistic Cannon . | . . . . . Launcher . | . . . . . Special Weapon . | . . . . . Impact Weapon . | . . . . . Slashing Weapon 1 | . . 1 . . Piercing Weapon . | . . . . . Special Melee Weapon . | . . . . . Unidentified Prototypes 5 | . . 1 3 1 Parts Lost 26 | . . 8 1 17 Power 5 | . . 1 . 4 Propulsion 9 | . . 2 . 7 Utility 3 | . . 1 . 2 Weapon 9 | . . 4 1 4 Highest Loss Streak 9 | . . 6 1 9 To Critical Strikes . | . . . . . Average Slot Usage (%) 91 | . 97 95 94 71 Engine 12 | . 14 10 18 5 Treads 4 | . . . 12 7 Leg 5 | . 13 . 5 . Wheel 16 | . 14 32 9 3 Hover 1 | . . . . 9 Device 9 | . 11 4 10 15 Storage 10 | . 14 11 9 6 Protection 4 | . . 5 7 3 Energy Gun 12 | . 11 21 8 3 Ballistic Gun 10 | . 16 7 12 6 Naked Turns 1 | . . . . 1 Heaviest Build 104 | 11 29 54 104 70 Greatest Support 48 | 20 32 48 26 30 Greatest Overweight (x) 6 | . 1 2 3 6 Average Overweight (x) 1 | . . . 2 1 Largest Inventory Capacity 25 | 8 15 20 25 20 Average Capacity 17 | 8 13 17 20 19 Most Carried 20 | 7 15 20 20 20 Average Carried 15 | 6 11 15 17 17 Final Capacity 20 | 8 15 20 20 5 Final Carried 20 | 7 15 20 20 4 Class Distribution -------------------- 48% | Mutant 26% | Tank 9% | Gunner 7% | Scavenger-Tank 3% | Scavenger-Gunner 3% | Scavenger-Mutant Dominant Class ---------------- Mutant | -10/Materials Mutant | -9/Materials Tank | -8/Materials Mutant | -7/Factory Resources | -11 -10 -9 -8 -7 ----------- Run | Scr Mat Mat Mat Fac Matter Collected 1309 | 252 229 281 508 39 Remotely . | . . . . . Salvage Created 1307 | 135 264 482 266 160 Parts 89 | 9 10 37 19 14 Haulers Intercepted 3 | . 1 . 2 . Recyclers Shooed 1 | . . . 1 . Parts Field Recycled . | . . . . . Retrieved Matter . | . . . . . Parts Self-Destructed . | . . . . . Prevented . | . . . . . Kills | -11 -10 -9 -8 -7 ------- Run | Scr Mat Mat Mat Fac Combat Hostiles Destroyed 32 | . 5 13 7 7 Guns 31 | . 4 13 7 7 Classes Destroyed 8 | 2 2 3 . 1 Builder 1 | . . . . 1 Tunneler 2 | 2 . . . . Hauler 3 | . 1 . 2 . Recycler 1 | 1 . . . . Swarmer 17 | . . 4 6 7 Grunt 10 | . 5 5 . . Duelist 1 | . . 1 . . Sentry 4 | . . 3 1 . Best Kill Streak 5 | 1 2 5 3 5 Combat Bots Only 5 | . 2 5 3 4 Max Kills in Single Turn 2 | 1 2 1 2 1 Gunslinging 1 | . 1 . 1 . Exploded . | . . . . . Melee . | . . . . . Uniques/NPCs Destroyed . | . . . . . Combat | -11 -10 -9 -8 -7 -------- Run | Scr Mat Mat Mat Fac Damage Taken 4237 | . 318 1089 314 2516 Core 993 | . 71 193 25 704 Absorbed by Shields . | . . . . . Core Remaining (%) 79 | 100 71 51 95 . Volleys Fired 98 | 13 22 21 22 20 Largest 3 | 2 2 3 3 3 Hottest 144 | 40 85 144 101 143 Shots Fired 240 | 26 44 61 64 45 Gun 235 | 26 44 61 64 40 Cannon 5 | . . . . 5 Launcher . | . . . . . Special . | . . . . . Kinetic 154 | 26 30 19 44 35 Thermal 54 | . 14 30 . 10 Explosive . | . . . . . Electromagnetic 32 | . . 12 20 . Robot Hit Streak 11 | 4 8 5 11 5 Robot Miss Streak 7 | 3 2 2 5 7 Penetration Max 1 | . . . . 1 Secondary Targets 7 | . 1 3 2 1 Max Gunslinging Chain 1 | . 1 1 1 1 Shots Hit Robots 136 | 14 28 31 38 25 Core Hits 63 | 6 12 19 14 12 Critical Kills 2 | . . . 1 1 Critical Parts Destroyed 1 | . . . . 1 Critical Strikes 4 | . 1 . 1 2 Burn 1 | . 1 . . . Destroy 3 | . . . 1 2 Melee Attacks 11 | . . 11 . . Impact . | . . . . . Slashing 11 | . . 11 . . Piercing . | . . . . . Sneak Attacks . | . . . . . Combat Hostiles . | . . . . . Follow-up Attacks . | . . . . . Damage Inflicted 2102 | 141 366 471 596 528 Guns 2021 | 141 366 471 567 476 Cannons 52 | . . . . 52 Explosions . | . . . . . Melee . | . . . . . Ramming 29 | . . . 29 . Kinetic 1332 | 141 201 187 367 436 Thermal 488 | . 165 231 . 92 Explosive . | . . . . . Electromagnetic 253 | . . 53 200 . Impact . | . . . . . Slashing . | . . . . . Piercing . | . . . . . Highest Corruption 24 | . 2 24 3 . Average Corruption 2 | . 1 22 2 . Corruption Purged . | . . . . . Corruption Blocked . | . . . . . Effects 18 | . 6 1 11 . Message Errors 5 | . 1 1 3 . Matter Fused 7 | . 2 . 5 . Data Loss (minor) 1 | . 1 . . . Data Loss (major) 2 | . . . 2 . Misfires 2 | . 2 . . . Alerts 1 | . . . 1 . Overload Shots . | . . . . . Overflow Damage . | . . . . . Projectiles . | . . . . . Explosions . | . . . . . Melee . | . . . . . Knockbacks . | . . . . . Impact . | . . . . . Kinetic . | . . . . . Secondary . | . . . . . Self-Inflicted Damage 14 | . . . 14 . Shots . | . . . . . Rammed 3 | . . . 3 . Targets Rammed 3 | . . . 3 . Kicked . | . . . . . Crushed . | . . . . . Highest Temperature 403 | . 21 353 403 172 Average Temperature 83 | . 6 112 60 89 Received Heat Transfer 654 | . 198 210 90 156 Siege Activations . | . . . . . Robots Corrupted . | . . . . . Combat Hostiles . | . . . . . Parts Fried 1 | . . . 1 . Impact Corruptions . | . . . . . Robots Melted 1 | . 1 . . . Combat Hostiles 1 | . 1 . . . Parts Melted 3 | . 1 2 . . Heat Transferred 1147 | . 444 518 . 185 Parts Sabotaged . | . . . . . Parts Stolen . | . . . . . Parts Stripped . | . . . . . Power Chain Reactions . | . . . . . Missiles Intercepted . | . . . . . Alert | -11 -10 -9 -8 -7 ------- Run | Scr Mat Mat Mat Fac Peak Influence 240 | 15 157 240 186 147 Initial 65 | . 9 2 65 56 Average 87 | 6 69 126 68 96 Maximum Alert Level 1 | . . 1 . . Low Security (%) 88 | 100 100 58 100 100 Level 1 11 | . . 41 . . Level 2 . | . . . . . Level 3 . | . . . . . Level 4 . | . . . . . Level 5 . | . . . . . High Security . | . . . . . Max Security . | . . . . . Squads Dispatched 4 | . 1 1 . 2 Investigation 1 | . . . . 1 Extermination . | . . . . . Reinforcement 3 | . 1 1 . 1 Assault . | . . . . . Garrison . | . . . . . Intercept . | . . . . . Searches Triggered . | . . . . . Construction Impeded 1 | . . . . 1 Haulers Reinforced . | . . . . . Active Scanning Responses . | . . . . . Cargo Convoy Interrupts . | . . . . . Stealth | -11 -10 -9 -8 -7 --------- Run | Scr Mat Mat Mat Fac Distress Signals 1 | . . . . 1 Communications Jammed . | . . . . . Distress Signals . | . . . . . Times Spotted 46 | . 6 17 11 12 Peak Tracking Total 6 | . 3 6 3 6 Tactical Retreats 4 | . . 1 2 1 Traps | -11 -10 -9 -8 -7 ------- Run | Scr Mat Mat Mat Fac Traps Triggered 4 | . 2 . 2 . Indirectly . | . . . . . Trap Hack Attempts . | . . . . . Triggered . | . . . . . Disarmed . | . . . . . Reprogrammed . | . . . . . Reused . | . . . . . Traps Extracted . | . . . . . Installed . | . . . . . Triggered . | . . . . . Machines | -11 -10 -9 -8 -7 ---------- Run | Scr Mat Mat Mat Fac Machines Disabled 1 | . . 1 . . Max in Single Turn 1 | . . 1 . . Machines Sabotaged . | . . . . . Garrisons Compromised . | . . . . . Overloaded Fab Kills . | . . . . . Hacking | -11 -10 -9 -8 -7 --------- Run | Scr Mat Mat Mat Fac Machines Accessed 5 | . 2 1 1 1 Terminals 3 | . 1 . 1 1 Fabricators . | . . . . . Repair Stations 1 | . . 1 . . Recycling Units 1 | . 1 . . . Scanalyzers . | . . . . . Garrison Access . | . . . . . Total Hacks 10 | . 2 1 3 4 Successful 4 | . 2 . 1 1 Failed 6 | . . 1 2 3 Catastrophic 2 | . . . 2 . Database Lockouts . | . . . . . Manual 5 | . . . 3 2 Terminals 8 | . 1 . 3 4 Fabricators . | . . . . . Repair Stations 1 | . . 1 . . Recycling Units 1 | . 1 . . . Scanalyzers . | . . . . . Garrison Access . | . . . . . Terminal Hacks 3 | . 1 . 1 1 Record 1 | . 1 . . . Prototype ID Bank 1 | . . . . 1 Branch Access Points 1 | . . . 1 . Fabricator Hacks . | . . . . . Repair Station Hacks . | . . . . . Recycling Unit Hacks 1 | . 1 . . . Report Inventory 1 | . 1 . . . Scanalyzer . | . . . . . Garrison Access Hacks . | . . . . . Unauthorized Hacks . | . . . . . Terminals . | . . . . . Fabricators . | . . . . . Repair Stations . | . . . . . Recycling Units . | . . . . . Scanalyzers . | . . . . . Garrison Access . | . . . . . Data Cores Recovered . | . . . . . Used . | . . . . . Hacking Detections 3 | . 1 . 1 1 Full Trace Events 2 | . . . 1 1 Feedback Events . | . . . . . Feedback Blocked . | . . . . . Robot Schematics Acquired . | . . . . . Robots Built . | . . . . . Authchips . | . . . . . Time . | . . . . . Total Robot Build Rating . | . . . . . Part Schematics Acquired . | . . . . . Parts Built . | . . . . . Authchips . | . . . . . Time . | . . . . . Total Part Build Rating . | . . . . . Parts Repaired . | . . . . . Time . | . . . . . Parts Recycled . | . . . . . Recycled Matter . | . . . . . Retrieved Matter . | . . . . . Retrieved Components . | . . . . . Parts Scanalyzed . | . . . . . Part Schematics Acquired . | . . . . . Parts Damaged . | . . . . . Bothacking | -11 -10 -9 -8 -7 ------------ Run | Scr Mat Mat Mat Fac Used RIF Installer . | . . . . . Robots Hacked . | . . . . . Non-combat . | . . . . . Combat . | . . . . . Robot Hacks Applied . | . . . . . Relay Couplers Released . | . . . . . Fabnet Peak Effective % . | . . . . . Robots Rewired . | . . . . . Allies Hacked . | . . . . . Hacks Repelled . | . . . . . Allies | -11 -10 -9 -8 -7 -------- Run | Scr Mat Mat Mat Fac Total Allies . | . . . . . Largest Group . | . . . . . Highest-Rated Group . | . . . . . Highest-Rated Ally . | . . . . . Total Orders . | . . . . . Ally Attacks . | . . . . . Total Damage . | . . . . . Kills . | . . . . . Allies Corrupted . | . . . . . Allies Melted . | . . . . . Intel | -11 -10 -9 -8 -7 ------- Run | Scr Mat Mat Mat Fac Robot Analysis Total . | . . . . . Derelict Logs Recovered . | . . . . . Drone Launches . | . . . . . Drone Recoveries . | . . . . . Exploration | -11 -10 -9 -8 -7 ------------- Run | Scr Mat Mat Mat Fac Turns Passed 2509 | 70 597 722 758 362 Spaces Moved 1637 | 28 439 549 425 196 Core 1 | . . . . 1 Treads 10 | . . . 8 2 Legs 189 | 28 136 . 25 . Wheels 1345 | . 303 549 392 101 Hover 92 | . . . . 92 Flight . | . . . . . Fastest Speed 50 | 120 100 100 130 50 Average Speed 122 | 120 114 106 148 131 Slowest Speed 420 | 120 190 130 330 420 Overloaded Moves . | . . . . . Propulsion Burnouts . | . . . . . Robots Hopped . | . . . . . Cave-ins Triggered 2 | . . 2 . . Exploration Rate (%) 24 | 3 38 47 27 5 Regions Visited 4 Branch Regions . Pre-discovered Areas . | . . . . . Known Exits Taken . | . . . . . Unknown Exits Taken 4 | 1 1 1 1 . Scrap Searched . | . . . . . Spaces Dug 4 | . . 4 . . Terrain Destroyed 5 | . . 4 1 . Melee 4 | . . 4 . . Projectile 1 | . . . 1 . AOE . | . . . . . Terrain Rammed . | . . . . . Walls Destroyed . | . . . . . Machines Disabled . | . . . . . Actions | -11 -10 -9 -8 -7 --------- Run | Scr Mat Mat Mat Fac Total 1919 | 41 492 621 503 262 Wait 10 | . 9 1 . . Move 1633 | 27 438 548 424 196 Hop . | . . . . . Pick Up 45 | 1 8 16 12 8 Fast Attach 19 | . 4 . 8 7 Attach 24 | . . 4 11 9 Detach 5 | . . . 5 . Swap 23 | . 4 9 5 5 Drop 48 | . 7 11 13 17 Fire 98 | 13 22 21 22 20 Melee 11 | . . 11 . . Ram 3 | . . . 3 . Kick . | . . . . . Crush . | . . . . . Escape Stasis . | . . . . . Rewire . | . . . . . Trap . | . . . . . Miscellaneous . | . . . . . Route ------- -11/Scrapyard -10/Materials -9/Materials -8/Materials -7/Factory History --------- Turn | Location | Event 4 | -11/Scrapyard | Discovered new exit (range 3) 71 | -11/Scrapyard | Entered Materials 137 | -10/Materials | Discovered new exit (range 10) 660 | -10/Materials | Build established: Mutant 668 | -10/Materials | Entered another Materials area 668 | -9/Materials | Evolved 2 slots: Propulsion x1, Weapon x1 1111 | -9/Materials | Discovered new exit (range 15) 1370 | -9/Materials | Crushed by falling debris 1370 | -9/Materials | System corruption reached 10% 1372 | -9/Materials | Crushed by falling debris 1390 | -9/Materials | Entered another Materials area 1390 | -8/Materials | Evolved 2 slots: Power x1, Utility x1 1403 | -8/Materials | Lost 6 parts (1p2n1u2w) 1896 | -8/Materials | Build established: Tank 2078 | -8/Materials | Discovered new exit (range 8) 2148 | -8/Materials | Entered Factory 2148 | -7/Factory | Evolved 2 slots: Utility x2 2398 | -7/Factory | Lost 7 parts (2p1n2u2w) 2493 | -7/Factory | Core integrity fell below 50% 2505 | -7/Factory | Core integrity fell below 20% 2506 | -7/Factory | Released all parts (4) 2510 | -7/Factory | Destroyed by Y-54 Guardian with Gatling Laser Last Messages --------------- 02493_ Nuclear Reactor explodes. 02493_ Neutrino Reactor explodes. 02493_ Penetrated by Slug. 02495_ Lgt. Nuclear Core destroyed. 02495_ Acquired 26 matter. 02496_ Penetrated by Slug. 02496_ Airjet destroyed. 02499_ Penetrated by Slug. 02505_ Airjet destroyed. 02506_ Dropped Com. Matter Pod. 02506_ Released Airjet. 02506_ Released Hcp. Storage Unit. 02506_ Released Weight Redist. System. 02507_ Dropped Imp. Terrain Scanner. 02507_ K-01 Serf destroyed. 02507_ Acquired Airjet. 02508_ Penetrated by Slug. 02509_ Airjet destroyed. 02509_ Acquired Airjet. 02510_ Slug penetrates Wall. Map ----- +----------------------------------------------------+ | ?????????????????????????????????????????????????? | | ?????????????????????????????????????????????????? | | ?????????????????????????????????????????????????? | | ?????????????????????????????????????????????????? | | ?????????????????????????????????????????????????? | | ?????????????????????????????????????????????????? | | ?????????????????????????????????????????????????? | | ?????????????????????????????????????????????????? | | ?????????????????????????????????????????????????? | | ?????????????????????????????????????????????????? | | ?????????????????????????????????????????????????? | | ?##########??????????????????????????????????????? | | ?# #??????????????????????????????????????? | | ?# #??????????????????????????????????????? | | ?# #??????????????????????????????????????? | | ?# #??????????????????????????????????????? | | ?# #??????????????????????????????????????? | | ?# #??????????????????????????????????????? | | ?# #?????????????????????????? ???????????? | | ?? #????????????????????????? ??????????? | | ???? ????????????????????????? #??????????? | | ######+#############+############ #??????????? | | #??????????? | | Y #??????????? | | Y =%!= #??????????? | | h=! !!!@! #??????????? | | u h% =!=! ] #??????????? | | ##########+#####%;#############+###???????????? | | #??????????? # #???????????????????? | | #???????" # #???????????????????? | | #?????"F"" ?# #???????????????????? | | #?????? "" ??# #???????????????????? | | #?????? ???# ??????????????????? | | #????? ???# # "????????????????? | | #######??""" ""????# ?????????????????? | | #??""" "?????# # "????????????????? | | #???""???????## #?"????????????????? | | #?????????????? ##??????????????????? | | #??????????????### ###""???????????????????? | | #?????????????????##???????????????????????? | | ##?????????????????????????????????????????? | | ##?????????????????????????????????????????? | | ##?????????????????????????????????????????? | | ##?????????????????????????????????????????? | | ##?????????????????????????????????????????? | | ##?????????????????????????????????????????? | | #??????????????????????????????????????????? | | #######??????????????????????????????????????????? | | #####????????????????????????????????????????????? | | ?????????????????????????????????????????????????? | +----------------------------------------------------+ Best States ------------- Heat Dissipation 48 Energy Generation 19 Energy Capacity 275 Matter Stores 300 Matter Capacity 300 Sight Range 16 Terrain Scan Density 10 Additional Mass Support 6 Armor Coverage 225 Evasion (%) 55 Recoil Reduction 2 Matter Filtering 30 Item Schematics ----------------- None Robot Schematics ------------------ None Fabricated ------------ Nothing Alien Tech Used ----------------- None Achievements -------------- None Challenges ------------ None Game ------ Seed BurstThrusterClaws Manual? 0 Play Time 00:33:39 Cumulative 83.1 hours Start 2022.06.02 @ 05:19:04 End 2022.06.02 @ 05:52:35 Sessions 1 Manual Loads 0 Difficulty Rogue Special Mode None Game No. 128 Rogue 82 Adventurer 45 Explorer 1 Win Type - Total 0 Types 0/0/0/0/0/0/0/0/0 Lore% 27 Gallery% 47 Achievement% 33 Wizard Run 0 Options --------- ASCII 0 Keyboard 0 Movement Mouse Keybinds 0 Fullscreen 2 Font 18/X11Bold Map View 76x50 Tactical HUD 1 Map Filters NONE Filters LOW_CONTRAST(13,24,33)|BRIGHTNESS(90)|SATURATION(87) Steam 1 RUN: 0efc3660-aae5-4024-b470-ae70476607b5